Creditor Name,Section,Voucher No,Cost Code,Detail Code,Type of Expenditure,Description,Payment Date, Net Amount 
A J Taylor Limited,Property Services,V087652,2972,1000,Premises,Repairs & Maintenance,21/06/2018, 354.80 
A J Taylor Limited,Property Services,V087652,2982,1000,Premises,Repairs & Maintenance,21/06/2018, 184.15 
Adams Integra Ltd,Development Control,V087336,7300,2800,Third Party payments,Contractors,27/06/2018," 6,750.00 "
Adrian Hope Tree Services,Operations,V087562,0960,1000,Premises,Repairs & Maintenance,19/06/2018, 280.00 
Adrian Hope Tree Services,Operations,V087730,0960,1000,Premises,Repairs & Maintenance,29/06/2018, 395.00 
Aldermore Invoice Finance,Property Services,V087272,2950,1000,Premises,Repairs & Maintenance,11/06/2018,"-1,638.00 "
Aldermore Invoice Finance,Property Services,V087301,0900,1000,Premises,Repairs & Maintenance,01/06/2018, 119.00 
Aldermore Invoice Finance,Property Services,V087301,0900,1000,Premises,Repairs & Maintenance,01/06/2018, 108.00 
Aldermore Invoice Finance,Property Services,V087301,2982,1000,Premises,Repairs & Maintenance,01/06/2018, 650.00 
Aldermore Invoice Finance,Property Services,V087301,2985,1000,Premises,Repairs & Maintenance,01/06/2018, 118.00 
Aldermore Invoice Finance,Property Services,V087301,2987,1000,Premises,Repairs & Maintenance,01/06/2018, 101.00 
Aldermore Invoice Finance,Property Services,V087301,4650,1000,Premises,Repairs & Maintenance,01/06/2018, 110.00 
Aldermore Invoice Finance,Property Services,V087301,6105,1000,Premises,Repairs & Maintenance,01/06/2018, 220.00 
Aldermore Invoice Finance,Property Services,V087301,6550,1000,Premises,Repairs & Maintenance,01/06/2018, 106.00 
Aldermore Invoice Finance,Property Services,V087457,2950,1000,Premises,Repairs & Maintenance,11/06/2018," 1,638.00 "
Aldermore Invoice Finance,Property Services,V087660,2997,2800,Third Party payments,Contractors,21/06/2018, 476.00 
Allstar Business Solutions Ltd,Operations,V087682,9918,8902,Balance Sheet,Payments,25/06/2018, 410.64 
Alphabet (UK) Limited,Finance,V087467,8861,3600,Transport,Car Leases,29/06/2018," 1,438.83 "
Alphabet (UK) Limited,Finance,V087467,8861,3600,Transport,Car Leases,29/06/2018," 1,557.09 "
Andrew Grout,Building Control,V087399,7500,2800,Third Party payments,Contractors,07/06/2018, 450.00 
Aquaforce Special Waste Ltd,Operations,V087769,0920,2800,Third Party payments,Contractors,27/06/2018, 445.00 
Aquaforce Special Waste Ltd,Operations,V087769,0920,2800,Third Party payments,Contractors,27/06/2018, 283.00 
Arc4 Ltd,Finance,V087453,7006,2800,Third Party payments,Contractors,11/06/2018," 10,555.31 "
Bertie B Design & Print,Economic Development,V087426,6723,2800,Third Party payments,Contractors,11/06/2018, 251.00 
Bromsgrove District Council,Finance,P087639,4320,5507,Third Party payments,OLA`s,21/06/2018," 96,499.98 "
Bromsgrove District Council,Finance,P087781,4320,5507,Third Party payments,OLA`s,29/06/2018," 32,166.66 "
Brookhire Vehicle Rental,Operations,V087297,0823,3150,Transport,Vehicle Hire,05/06/2018," 1,140.16 "
Brookhire Vehicle Rental,Operations,V087526,0728,3150,Transport,Vehicle Hire,15/06/2018, 773.68 
C P Davidson and Sons Ltd,Operations,V087094,0828,3510,Transport,Vehicle Maintenance,11/06/2018, 341.57 
Cameron Engineering & Motorsports Ltd,Economic Development,V087640,6733,5400,Third Party payments,Grants,21/06/2018," 1,000.00 "
Capita Business Services Limited,Finance,V087763,2607,5543,Supplies and Services,Credit Card Commission,27/06/2018, 360.39 
Casey Bailey,Community Services,V087364,6230,2800,Third Party payments,Contractors,27/06/2018, 300.40 
CleanMy Ltd,Operations,V087176,0935,1311,Premises,Contract cleaning & Cleaning Supplies,15/06/2018, 431.70 
Cleansing Service Group Ltd,Operations,V087110,0900,2800,Third Party payments,Contractors,11/06/2018," 1,094.08 "
CMS Supatrak Ltd,Operations,V087344,0700,3100,Transport,"Vehicle General Costs (Cleaning,CMS FTA)",29/06/2018, 9.99 
CMS Supatrak Ltd,Operations,V087344,0701,3100,Transport,"Vehicle General Costs (Cleaning,CMS FTA)",29/06/2018, 9.99 
CMS Supatrak Ltd,Operations,V087344,0704,3100,Transport,"Vehicle General Costs (Cleaning,CMS FTA)",29/06/2018, 9.99 
CMS Supatrak Ltd,Operations,V087344,0722,3100,Transport,"Vehicle General Costs (Cleaning,CMS FTA)",29/06/2018, 9.99 
CMS Supatrak Ltd,Operations,V087344,0723,3100,Transport,"Vehicle General Costs (Cleaning,CMS FTA)",29/06/2018, 9.99 
CMS Supatrak Ltd,Operations,V087344,0724,3100,Transport,"Vehicle General Costs (Cleaning,CMS FTA)",29/06/2018, 9.99 
CMS Supatrak Ltd,Operations,V087344,0725,3100,Transport,"Vehicle General Costs (Cleaning,CMS FTA)",29/06/2018, 9.99 
CMS Supatrak Ltd,Operations,V087344,0726,3100,Transport,"Vehicle General Costs (Cleaning,CMS FTA)",29/06/2018, 9.99 
CMS Supatrak Ltd,Operations,V087344,0727,3100,Transport,"Vehicle General Costs (Cleaning,CMS FTA)",29/06/2018, 9.99 
CMS Supatrak Ltd,Operations,V087344,0728,3100,Transport,"Vehicle General Costs (Cleaning,CMS FTA)",29/06/2018, 9.99 
CMS Supatrak Ltd,Operations,V087344,0762,3100,Transport,"Vehicle General Costs (Cleaning,CMS FTA)",29/06/2018, 9.99 
CMS Supatrak Ltd,Operations,V087344,0765,3100,Transport,"Vehicle General Costs (Cleaning,CMS FTA)",29/06/2018, 9.99 
CMS Supatrak Ltd,Operations,V087344,0767,3100,Transport,"Vehicle General Costs (Cleaning,CMS FTA)",29/06/2018, 9.99 
CMS Supatrak Ltd,Operations,V087344,0777,3100,Transport,"Vehicle General Costs (Cleaning,CMS FTA)",29/06/2018, 9.99 
CMS Supatrak Ltd,Operations,V087344,0778,3100,Transport,"Vehicle General Costs (Cleaning,CMS FTA)",29/06/2018, 9.99 
CMS Supatrak Ltd,Operations,V087344,0794,3100,Transport,"Vehicle General Costs (Cleaning,CMS FTA)",29/06/2018, 9.99 
CMS Supatrak Ltd,Operations,V087344,0795,3100,Transport,"Vehicle General Costs (Cleaning,CMS FTA)",29/06/2018, 9.99 
CMS Supatrak Ltd,Operations,V087344,0796,3100,Transport,"Vehicle General Costs (Cleaning,CMS FTA)",29/06/2018, 9.99 
CMS Supatrak Ltd,Operations,V087344,0815,3100,Transport,"Vehicle General Costs (Cleaning,CMS FTA)",29/06/2018, 9.99 
CMS Supatrak Ltd,Operations,V087344,0816,3100,Transport,"Vehicle General Costs (Cleaning,CMS FTA)",29/06/2018, 9.99 
CMS Supatrak Ltd,Operations,V087344,0817,3100,Transport,"Vehicle General Costs (Cleaning,CMS FTA)",29/06/2018, 9.99 
CMS Supatrak Ltd,Operations,V087344,0818,3100,Transport,"Vehicle General Costs (Cleaning,CMS FTA)",29/06/2018, 9.99 
CMS Supatrak Ltd,Operations,V087344,0821,3100,Transport,"Vehicle General Costs (Cleaning,CMS FTA)",29/06/2018, 9.99 
CMS Supatrak Ltd,Operations,V087344,0822,3100,Transport,"Vehicle General Costs (Cleaning,CMS FTA)",29/06/2018, 9.99 
CMS Supatrak Ltd,Operations,V087344,0823,3100,Transport,"Vehicle General Costs (Cleaning,CMS FTA)",29/06/2018, 9.99 
CMS Supatrak Ltd,Operations,V087344,0824,3100,Transport,"Vehicle General Costs (Cleaning,CMS FTA)",29/06/2018, 9.99 
CMS Supatrak Ltd,Operations,V087344,0825,3100,Transport,"Vehicle General Costs (Cleaning,CMS FTA)",29/06/2018, 9.99 
CMS Supatrak Ltd,Operations,V087344,0826,3100,Transport,"Vehicle General Costs (Cleaning,CMS FTA)",29/06/2018, 9.99 
CMS Supatrak Ltd,Operations,V087344,0828,3100,Transport,"Vehicle General Costs (Cleaning,CMS FTA)",29/06/2018, 9.99 
CMS Supatrak Ltd,Operations,V087344,0829,3100,Transport,"Vehicle General Costs (Cleaning,CMS FTA)",29/06/2018, 9.99 
CMS Supatrak Ltd,Operations,V087344,0830,3100,Transport,"Vehicle General Costs (Cleaning,CMS FTA)",29/06/2018, 9.99 
CMS Supatrak Ltd,Operations,V087344,0831,3100,Transport,"Vehicle General Costs (Cleaning,CMS FTA)",29/06/2018, 9.99 
CMS Supatrak Ltd,Operations,V087344,0832,3100,Transport,"Vehicle General Costs (Cleaning,CMS FTA)",29/06/2018, 9.99 
Commercial Fuel Solutions Ltd,Operations,V087376,9918,8902,Balance Sheet,Payments,05/06/2018, 348.00 
Corona Energy,Property Services,V087415,2972,1303,Premises,Gas,07/06/2018, 431.71 
Crimestop Security & Fire Ltd,Property Services,V087299,2982,1120,Premises,Maintenance Agreements,15/06/2018, 290.00 
Customworks Ltd,Tourism,V087469,6550,2600,Supplies and Services,Items for Re-sale,15/06/2018, 52.00 
Customworks Ltd,Tourism,V087469,6550,2600,Supplies and Services,Items for Re-sale,15/06/2018, 120.00 
Customworks Ltd,Tourism,V087469,6550,2600,Supplies and Services,Items for Re-sale,15/06/2018, 240.00 
Customworks Ltd,Tourism,V087469,6550,2600,Supplies and Services,Items for Re-sale,15/06/2018, 240.00 
David Whyman Map Sales,Tourism,V087320,6550,2600,Supplies and Services,Items for Re-sale,01/06/2018, 17.97 
David Whyman Map Sales,Tourism,V087320,6550,2600,Supplies and Services,Items for Re-sale,01/06/2018, 11.85 
David Whyman Map Sales,Tourism,V087320,6550,2600,Supplies and Services,Items for Re-sale,01/06/2018, 161.82 
David Whyman Map Sales,Tourism,V087320,6550,2600,Supplies and Services,Items for Re-sale,01/06/2018, 53.94 
David Whyman Map Sales,Tourism,V087320,6550,2600,Supplies and Services,Items for Re-sale,01/06/2018, 38.97 
David Whyman Map Sales,Tourism,V087320,6550,2600,Supplies and Services,Items for Re-sale,01/06/2018, 26.97 
David Whyman Map Sales,Tourism,V087320,6550,2600,Supplies and Services,Items for Re-sale,01/06/2018, 15.00 
David Whyman Map Sales,Tourism,V087320,6550,2600,Supplies and Services,Items for Re-sale,01/06/2018, 8.39 
David Whyman Map Sales,Tourism,V087655,6550,2600,Supplies and Services,Items for Re-sale,25/06/2018, 13.02 
David Whyman Map Sales,Tourism,V087655,6550,2600,Supplies and Services,Items for Re-sale,25/06/2018, 12.97 
David Whyman Map Sales,Tourism,V087655,6550,2600,Supplies and Services,Items for Re-sale,25/06/2018, 17.97 
David Whyman Map Sales,Tourism,V087655,6550,2600,Supplies and Services,Items for Re-sale,25/06/2018, 89.82 
David Whyman Map Sales,Tourism,V087655,6550,2600,Supplies and Services,Items for Re-sale,25/06/2018, 161.82 
David Whyman Map Sales,Tourism,V087655,6550,2600,Supplies and Services,Items for Re-sale,25/06/2018, 38.97 
David Whyman Map Sales,Tourism,V087655,6550,2600,Supplies and Services,Items for Re-sale,25/06/2018, 11.97 
David Whyman Map Sales,Tourism,V087655,6550,2600,Supplies and Services,Items for Re-sale,25/06/2018, 12.97 
David Whyman Map Sales,Tourism,V087655,6550,2600,Supplies and Services,Items for Re-sale,25/06/2018, 23.97 
Dudleys Coaches Limited,Tourism,V087565,6550,9252,Income,Commission,19/06/2018,-80.55 
Dudleys Coaches Limited,Tourism,V087565,9557,8902,Balance Sheet,Payments,19/06/2018, 805.50 
Ecclesiastical Steeplejacks Limited,Property Services,V087561,2950,1000,Premises,Repairs & Maintenance,15/06/2018, 180.00 
Ecclesiastical Steeplejacks Limited,Property Services,V087561,2972,1000,Premises,Repairs & Maintenance,15/06/2018, 180.00 
Ecclesiastical Steeplejacks Limited,Property Services,V087561,6140,1000,Premises,Repairs & Maintenance,15/06/2018, 180.00 
Ecclesiastical Steeplejacks Limited,Property Services,V087561,6200,1000,Premises,Repairs & Maintenance,15/06/2018, 180.00 
Environmental Management Solutions Ltd,Property Services,V087306,2997,2800,Third Party payments,Contractors,01/06/2018, 325.00 
Fire Safe Services Ltd,Property Services,V087478,0900,1000,Premises,Repairs & Maintenance,15/06/2018," 1,368.51 "
Fire Safe Services Ltd,Property Services,V087638,0900,1000,Premises,Repairs & Maintenance,27/06/2018, 496.63 
Fortis Living,Housing,V087325,1563,7204,Capital,Minor Adaption/Handyman Top Up,01/06/2018, 897.96 
Fortis Living,Housing,V087331,1563,7204,Capital,Minor Adaption/Handyman Top Up,01/06/2018," 2,070.00 "
Freight Transport Association,Operations,V087583,0925,3100,Transport,"Vehicle General Costs (Cleaning,CMS FTA)",19/06/2018," 7,461.47 "
Freight Transport Association,Operations,V087753,0925,3100,Transport,"Vehicle General Costs (Cleaning,CMS FTA)",27/06/2018, 772.00 
Geesink Norba Ltd,Operations,V087253,0815,3510,Transport,Vehicle Maintenance,13/06/2018," 1,163.77 "
Geesink Norba Ltd,Operations,V087262,0821,3510,Transport,Vehicle Maintenance,13/06/2018, 563.22 
Geesink Norba Ltd,Operations,V087266,0821,3510,Transport,Vehicle Maintenance,07/06/2018," 2,714.49 "
Geesink Norba Ltd,Operations,V087267,0823,3510,Transport,Vehicle Maintenance,11/06/2018, 288.53 
Geesink Norba Ltd,Operations,V087569,0822,3510,Transport,Vehicle Maintenance,25/06/2018," 1,380.34 "
Geesink Norba Ltd,Operations,V087589,0818,3510,Transport,Vehicle Maintenance,25/06/2018," 1,706.00 "
Global Payments,Finance,V087509,2607,5543,Supplies and Services,Credit Card Commission,18/06/2018, 7.00 
Global Payments,Finance,V087509,2607,5543,Supplies and Services,Credit Card Commission,18/06/2018," 1,830.45 "
Global Payments,Finance,V087510,2607,5543,Supplies and Services,Credit Card Commission,18/06/2018, 7.00 
Global Payments,Finance,V087510,2607,5543,Supplies and Services,Credit Card Commission,18/06/2018, 997.80 
Great Malvern Primary Academy,Democratic Services,V087486,2300,5400,Third Party payments,Grants,11/06/2018, 250.00 
Green Shed Video,Community Services,V087000,6230,2800,Third Party payments,Contractors,05/06/2018," 3,826.00 "
Green Shed Video,Community Services,V087195,6230,2800,Third Party payments,Contractors,05/06/2018, 300.00 
Grimley Peace Hall Foundation,Democratic Services,V087547,2300,5400,Third Party payments,Grants,15/06/2018, 250.00 
Hako Service Solutions,Operations,V087249,0767,3510,Transport,Vehicle Maintenance,21/06/2018, 503.62 
Haymarket Media Group Limited,Development Control,V087410,7300,4210,Third Party payments,Advertising,27/06/2018," 1,460.00 "
Heritage Collective UK Ltd,Development Control,V087372,7300,2800,Third Party payments,Contractors,27/06/2018," 2,458.70 "
Hills Ford,Operations,V087047,0764,3331,Transport,Vehicle Excise Duty,07/06/2018, 137.50 
Hills Ford,Operations,V087047,1401,7000,Capital,Fees,07/06/2018," 23,000.00 "
HSBC Bank Plc - Bank Charges,Finance,V087318,2607,2814,Supplies and Services,Bank Charges,13/06/2018, 269.75 
HSBC Invoice Finance (UK) Ltd,Operations,V087680,0929,0200,Employees,Agency Staff,25/06/2018, 304.03 
HSBC Invoice Finance (UK) Ltd,Operations,V087719,0929,0200,Employees,Agency Staff,25/06/2018, 361.01 
Hydro-Logic Services (International) Ltd,Community Services,V087618,4311,2800,Third Party payments,Contractors,19/06/2018, 268.50 
Inform CPI Ltd,Finance,V087450,8013,5300,Supplies and Services,Subscriptions,07/06/2018," 5,000.00 "
Innovate Educate Ltd,Community Services,V087309,6230,2800,Third Party payments,Contractors,01/06/2018," 1,000.00 "
Innovate Malvern CIC,Economic Development,V087290,6710,2800,Third Party payments,Contractors,01/06/2018, 379.16 
Innovate Malvern CIC,Economic Development,V087292,6723,5400,Third Party payments,Grants,01/06/2018," 1,000.00 "
Jade Security Services Limited,Community Services,V087520,4302,2800,Third Party payments,Contractors,13/06/2018, 480.00 
Jade Security Services Limited,Community Services,V087524,4302,2800,Third Party payments,Contractors,27/06/2018, 520.00 
Jark (Worcester) Ltd,Operations,V087323,0925,0200,Employees,Agency Staff,01/06/2018, 359.10 
Jark (Worcester) Ltd,Operations,V087323,0935,0200,Employees,Agency Staff,01/06/2018, 609.84 
Jark (Worcester) Ltd,Operations,V087493,0920,0200,Employees,Agency Staff,11/06/2018, 510.30 
Jark (Worcester) Ltd,Operations,V087493,0935,0200,Employees,Agency Staff,11/06/2018, 813.12 
Jark (Worcester) Ltd,Operations,V087580,0920,0200,Employees,Agency Staff,19/06/2018, 466.20 
Jark (Worcester) Ltd,Operations,V087580,0935,0200,Employees,Agency Staff,19/06/2018, 711.48 
Jark (Worcester) Ltd,Operations,V087712,0920,0200,Employees,Agency Staff,25/06/2018, 459.90 
Jark (Worcester) Ltd,Operations,V087712,0935,0200,Employees,Agency Staff,25/06/2018, 711.48 
Karl Rigby,Property Services,V087765,2982,1000,Premises,Repairs & Maintenance,27/06/2018," 5,500.00 "
Keith H Ballard,Operations,V087437,4660,1000,Premises,Repairs & Maintenance,07/06/2018, 573.38 
Keith H Ballard,Operations,V087438,4661,1000,Premises,Repairs & Maintenance,07/06/2018, 386.87 
Keith H Ballard,Operations,V087439,4635,1000,Premises,Repairs & Maintenance,07/06/2018, 335.42 
Keith H Ballard,Operations,V087440,4642,1000,Premises,Repairs & Maintenance,07/06/2018, 505.48 
Keith H Ballard,Operations,V087442,4651,1000,Premises,Repairs & Maintenance,07/06/2018, 860.70 
Keith H Ballard,Operations,V087443,4630,1000,Premises,Repairs & Maintenance,07/06/2018, 307.75 
Kings Chambers,Development Control,V087324,7300,2800,Third Party payments,Contractors,27/06/2018," 1,800.00 "
Kings Chambers,Development Control,V087324,7300,2800,Third Party payments,Contractors,27/06/2018, 360.00 
Labrys Design,Community Services,V087366,6230,2800,Third Party payments,Contractors,05/06/2018," 3,050.00 "
Lepus Consulting Ltd,Finance,V087188,7006,2800,Third Party payments,Contractors,05/06/2018,"-3,895.89 "
Lepus Consulting Ltd,Finance,V087188,7006,2800,Third Party payments,Contractors,07/06/2018," 3,895.89 "
Lloyds TSB Commercial Finance,Housing,V087337,1563,7201,Capital,Mandatory Disabled Facilities Grant,01/06/2018," 4,755.00 "
Lloyds TSB Commercial Finance,Housing,V087374,1563,7201,Capital,Mandatory Disabled Facilities Grant,05/06/2018," 2,570.00 "
Lloyds TSB Commercial Finance,Housing,V087612,1563,7010,Capital,Works,19/06/2018," 16,475.00 "
Lloyds TSB Commercial Finance,Housing,V087613,1563,7201,Capital,Mandatory Disabled Facilities Grant,19/06/2018," 3,125.00 "
Lloyds TSB Commercial Finance,Housing,V087614,1563,7201,Capital,Mandatory Disabled Facilities Grant,19/06/2018," 4,045.00 "
Lovell Johns Ltd,Economic Development,V087221,6723,2800,Third Party payments,Contractors,13/06/2018, 643.00 
Lower Broadheath Community Shop Ltd,Democratic Services,V087776,2300,5400,Third Party payments,Grants,27/06/2018, 500.00 
Mad as a March Hare Ltd,Economic Development,V087571,6400,2800,Third Party payments,Contractors,19/06/2018," 2,120.00 "
Mad as a March Hare Ltd,Economic Development,V087752,6400,2800,Third Party payments,Contractors,27/06/2018," 1,700.00 "
Mallard Consultancy,Community Services,V087268,6098,2800,Third Party payments,Contractors,07/06/2018, 990.00 
Malvern Cube,Community Services,V087663,6230,2800,Third Party payments,Contractors,21/06/2018, 418.00 
Malvern Dial-A-Ride,Community Services,V087504,4070,5529,Third Party payments,Concessionary Fares,13/06/2018, 551.00 
Malvern Hills Trust,Finance,P087779,0007,4899,Transfer Payments,Precept Payments,27/06/2018," 113,000.00 "
Malvern Hills Trust,Tourism,V087455,6550,9252,Income,Commission,11/06/2018,-400.02 
Malvern Hills Trust,Tourism,V087455,6550,9252,Income,Commission,11/06/2018, 17.00 
Malvern Hills Trust,Tourism,V087455,9551,8902,Balance Sheet,Payments,11/06/2018," 3,983.20 "
Malvern Town Council,Finance,P087743,0007,4899,Transfer Payments,Precept Payments,27/06/2018," 325,000.00 "
Malvern Walking Festival,Tourism,V087454,6550,9252,Income,Commission,11/06/2018,-101.10 
Malvern Walking Festival,Tourism,V087454,9567,8902,Balance Sheet,Payments,11/06/2018," 1,011.00 "
Melcon Hereford Limited,Property Services,V087284,2984,1000,Premises,Repairs & Maintenance,21/06/2018, 710.00 
Melton Support Services,Property Services,V087348,6550,1311,Premises,Contract cleaning & Cleaning Supplies,27/06/2018, 418.80 
Metric Group Ltd,Community Services,V087269,4100,1000,Premises,Repairs & Maintenance,21/06/2018," 1,411.05 "
Midland Commercials Ltd,Operations,V087733,0701,3510,Transport,Vehicle Maintenance,25/06/2018, 335.61 
Midland Commercials Ltd,Operations,V087733,0704,3510,Transport,Vehicle Maintenance,25/06/2018, 509.07 
Midland Commercials Ltd,Operations,V087733,0714,3510,Transport,Vehicle Maintenance,25/06/2018, 10.40 
Midland Commercials Ltd,Operations,V087733,0777,3510,Transport,Vehicle Maintenance,25/06/2018, 86.57 
Midland Commercials Ltd,Operations,V087733,0778,3510,Transport,Vehicle Maintenance,25/06/2018, 229.00 
Midland Commercials Ltd,Operations,V087733,0794,3510,Transport,Vehicle Maintenance,25/06/2018, 155.30 
Midland Commercials Ltd,Operations,V087733,0795,3510,Transport,Vehicle Maintenance,25/06/2018, 189.64 
Midland Commercials Ltd,Operations,V087733,0796,3510,Transport,Vehicle Maintenance,25/06/2018, 81.12 
Midland Commercials Ltd,Operations,V087733,0816,3510,Transport,Vehicle Maintenance,25/06/2018, 412.90 
Midland Commercials Ltd,Operations,V087733,0817,3510,Transport,Vehicle Maintenance,25/06/2018, 22.50 
Midland Commercials Ltd,Operations,V087733,0818,3510,Transport,Vehicle Maintenance,25/06/2018, 358.72 
Midland Commercials Ltd,Operations,V087733,0822,3510,Transport,Vehicle Maintenance,25/06/2018, 278.29 
Midland Commercials Ltd,Operations,V087733,0828,3510,Transport,Vehicle Maintenance,25/06/2018," 1,046.83 "
Midland Commercials Ltd,Operations,V087756,0777,3510,Transport,Vehicle Maintenance,27/06/2018, 28.50 
Midland Commercials Ltd,Operations,V087756,0777,3510,Transport,Vehicle Maintenance,27/06/2018, 135.42 
Midland Commercials Ltd,Operations,V087756,0778,3510,Transport,Vehicle Maintenance,27/06/2018, 148.15 
Midland Commercials Ltd,Operations,V087756,0794,3510,Transport,Vehicle Maintenance,27/06/2018, 481.06 
Midland Commercials Ltd,Operations,V087756,0816,3510,Transport,Vehicle Maintenance,27/06/2018, 320.92 
Midland Commercials Ltd,Operations,V087756,0817,3510,Transport,Vehicle Maintenance,27/06/2018, 410.25 
Midland Commercials Ltd,Operations,V087756,0828,3510,Transport,Vehicle Maintenance,27/06/2018, 812.18 
Midland Commercials Ltd,Operations,V087756,0831,3510,Transport,Vehicle Maintenance,27/06/2018, 506.18 
Midland Communications Ltd,Finance,V087631,0900,4230,Supplies and Services,Telephones,26/06/2018, 34.50 
Midland Communications Ltd,Finance,V087631,2971,4230,Supplies and Services,Telephones,26/06/2018, 11.50 
Midland Communications Ltd,Finance,V087631,2972,4230,Supplies and Services,Telephones,26/06/2018, 11.50 
Midland Communications Ltd,Finance,V087631,4302,4230,Supplies and Services,Telephones,26/06/2018, 11.81 
Midland Communications Ltd,Finance,V087631,6550,4230,Supplies and Services,Telephones,26/06/2018, 78.58 
Midland Communications Ltd,Finance,V087631,6590,4230,Supplies and Services,Telephones,26/06/2018, 74.74 
Midland Communications Ltd,Finance,V087631,8631,4230,Supplies and Services,Telephones,26/06/2018, 83.25 
Midland Communications Ltd,Finance,V087631,8645,4230,Supplies and Services,Telephones,26/06/2018, 90.55 
MOBA Mobile Automation UK Ltd,Finance,V083543,0795,3510,Transport,Vehicle Maintenance,19/06/2018,-569.00 
REDACTED,Tourism,V087566,6550,9252,Income,Commission,19/06/2018,-39.60 
REDACTED,Tourism,V087566,9556,8902,Balance Sheet,Payments,19/06/2018, 396.00 
npower Limited,Property Services,V087288,0900,1301,Premises,Electricity,11/06/2018, 445.32 
npower Limited,Property Services,V087288,2972,1301,Premises,Electricity,11/06/2018," 1,553.03 "
npower Limited,Property Services,V087288,2973,1301,Premises,Electricity,11/06/2018, 285.84 
npower Limited,Property Services,V087605,2950,1301,Premises,Electricity,27/06/2018, 18.91 
npower Limited,Property Services,V087605,2971,1301,Premises,Electricity,27/06/2018, 120.72 
npower Limited,Property Services,V087605,2979,1301,Premises,Electricity,27/06/2018, 12.99 
npower Limited,Property Services,V087605,2982,1301,Premises,Electricity,27/06/2018, 28.14 
npower Limited,Property Services,V087605,2984,1301,Premises,Electricity,27/06/2018, 41.04 
npower Limited,Property Services,V087605,2987,1301,Premises,Electricity,27/06/2018, 94.96 
npower Limited,Property Services,V087605,2988,1301,Premises,Electricity,27/06/2018, 32.59 
npower Limited,Property Services,V087605,2996,1301,Premises,Electricity,27/06/2018, 6.39 
npower Limited,Property Services,V087605,4152,1301,Premises,Electricity,27/06/2018, 64.76 
npower Limited,Property Services,V087605,4157,1301,Premises,Electricity,27/06/2018, 227.71 
npower Limited,Property Services,V087605,4159,1301,Premises,Electricity,27/06/2018, 33.56 
npower Limited,Property Services,V087605,4191,1301,Premises,Electricity,27/06/2018, 31.46 
npower Limited,Property Services,V087605,4630,1301,Premises,Electricity,27/06/2018, 29.40 
npower Limited,Property Services,V087605,4633,1301,Premises,Electricity,27/06/2018, 46.87 
npower Limited,Property Services,V087605,4642,1301,Premises,Electricity,27/06/2018, 27.82 
npower Limited,Property Services,V087605,4650,1301,Premises,Electricity,27/06/2018, 28.40 
npower Limited,Property Services,V087605,4651,1301,Premises,Electricity,27/06/2018, 31.46 
npower Limited,Property Services,V087605,4661,1301,Premises,Electricity,27/06/2018, 13.12 
npower Limited,Property Services,V087605,4661,1301,Premises,Electricity,27/06/2018, 13.13 
npower Limited,Property Services,V087605,6550,1301,Premises,Electricity,27/06/2018, 117.82 
npower Limited,Property Services,V087606,2972,1301,Premises,Electricity,27/06/2018," 1,375.07 "
NTM GB Ltd,Operations,V087395,0796,3510,Transport,Vehicle Maintenance,18/06/2018,-345.07 
NTM GB Ltd,Operations,V087395,0796,3510,Transport,Vehicle Maintenance,07/06/2018, 345.07 
NTM GB Ltd,Operations,V087395,0796,3510,Transport,Vehicle Maintenance,19/06/2018, 345.07 
One51 Plastics (UK) T/A MGB Plastics,Operations,V087074,0923,2000,Supplies and Services,Furniture & Equipment,05/06/2018," 4,800.00 "
One51 Plastics (UK) T/A MGB Plastics,Operations,V087229,0929,2000,Supplies and Services,Furniture & Equipment,13/06/2018," 9,420.00 "
One51 Plastics (UK) T/A MGB Plastics,Operations,V087746,0929,2000,Supplies and Services,Furniture & Equipment,27/06/2018," 9,420.00 "
Osbornes Chartered Architects,Property Services,V087432,2950,2800,Third Party payments,Contractors,07/06/2018," 3,000.00 "
Osbornes Chartered Architects,Property Services,V087506,2950,2800,Third Party payments,Contractors,13/06/2018," 4,000.00 "
Outside Studios Ltd,Community Services,V087527,6230,2800,Third Party payments,Contractors,27/06/2018," 29,013.13 "
P F Cusack (Tool Supplies) Ltd,Operations,V087075,0925,2700,Supplies and Services,"Clothes, uniforms and laundry",07/06/2018, 448.00 
Pertemps Ltd,Operations,V087248,0929,0200,Employees,Agency Staff,01/06/2018, 523.84 
Pertemps Ltd,Operations,V087279,0929,0200,Employees,Agency Staff,01/06/2018, 483.60 
Pertemps Ltd,Operations,V087281,0929,0200,Employees,Agency Staff,01/06/2018, 625.14 
Pertemps Ltd,Operations,V087282,0900,0200,Employees,Agency Staff,01/06/2018, 604.13 
Pertemps Ltd,Operations,V087283,0900,0200,Employees,Agency Staff,01/06/2018, 338.31 
Pertemps Ltd,Operations,V087303,0929,0200,Employees,Agency Staff,01/06/2018, 637.56 
Pertemps Ltd,Operations,V087304,0900,0200,Employees,Agency Staff,01/06/2018, 604.13 
Pertemps Ltd,Operations,V087335,0925,0200,Employees,Agency Staff,05/06/2018, 547.58 
Pertemps Ltd,Operations,V087351,0925,0200,Employees,Agency Staff,05/06/2018, 154.59 
Pertemps Ltd,Operations,V087351,0932,0200,Employees,Agency Staff,05/06/2018, 402.30 
Pertemps Ltd,Operations,V087352,0920,0200,Employees,Agency Staff,05/06/2018, 352.41 
Pertemps Ltd,Operations,V087352,0922,0200,Employees,Agency Staff,05/06/2018, 65.65 
Pertemps Ltd,Operations,V087353,0925,0200,Employees,Agency Staff,05/06/2018, 661.63 
Pertemps Ltd,Operations,V087356,0925,0200,Employees,Agency Staff,05/06/2018, 486.71 
Pertemps Ltd,Operations,V087357,0920,0200,Employees,Agency Staff,05/06/2018, 188.17 
Pertemps Ltd,Operations,V087357,0925,0200,Employees,Agency Staff,05/06/2018, 166.93 
Pertemps Ltd,Operations,V087357,4317,0200,Employees,Agency Staff,05/06/2018, 91.05 
Pertemps Ltd,Operations,V087359,0920,0200,Employees,Agency Staff,05/06/2018, 91.05 
Pertemps Ltd,Operations,V087359,0925,0200,Employees,Agency Staff,05/06/2018, 324.75 
Pertemps Ltd,Operations,V087379,0925,0200,Employees,Agency Staff,07/06/2018, 388.48 
Pertemps Ltd,Operations,V087470,0925,0200,Employees,Agency Staff,15/06/2018, 275.65 
Pertemps Ltd,Operations,V087484,0922,0200,Employees,Agency Staff,11/06/2018, 104.30 
Pertemps Ltd,Operations,V087484,0932,0200,Employees,Agency Staff,11/06/2018, 387.40 
Pertemps Ltd,Operations,V087521,4317,0200,Employees,Agency Staff,13/06/2018, 680.64 
Pertemps Ltd,Operations,V087534,0925,0200,Employees,Agency Staff,15/06/2018, 548.41 
Pertemps Ltd,Operations,V087538,0925,0200,Employees,Agency Staff,15/06/2018, 438.72 
Pertemps Ltd,Operations,V087539,0925,0200,Employees,Agency Staff,15/06/2018, 427.94 
Pertemps Ltd,Operations,V087540,0925,0200,Employees,Agency Staff,15/06/2018, 537.20 
Pertemps Ltd,Operations,V087541,0925,0200,Employees,Agency Staff,15/06/2018, 525.06 
Pertemps Ltd,Operations,V087542,0925,0200,Employees,Agency Staff,15/06/2018, 582.72 
Pertemps Ltd,Operations,V087543,0900,0200,Employees,Agency Staff,15/06/2018, 591.88 
Pertemps Ltd,Operations,V087544,0929,0200,Employees,Agency Staff,15/06/2018, 621.00 
Pertemps Ltd,Operations,V087620,0900,0200,Employees,Agency Staff,21/06/2018, 486.04 
Pertemps Ltd,Operations,V087643,0925,0200,Employees,Agency Staff,21/06/2018, 112.29 
Pertemps Ltd,Operations,V087643,4317,0200,Employees,Agency Staff,21/06/2018, 227.63 
Pertemps Ltd,Operations,V087644,0925,0200,Employees,Agency Staff,21/06/2018, 443.11 
Pertemps Ltd,Operations,V087645,0925,0200,Employees,Agency Staff,21/06/2018, 434.01 
Pertemps Ltd,Operations,V087647,0925,0200,Employees,Agency Staff,21/06/2018, 481.05 
Pertemps Ltd,Operations,V087648,0925,0200,Employees,Agency Staff,21/06/2018, 656.45 
Pertemps Ltd,Operations,V087649,0920,0200,Employees,Agency Staff,21/06/2018, 342.29 
Pertemps Ltd,Operations,V087649,0925,0200,Employees,Agency Staff,21/06/2018, 151.78 
Pertemps Ltd,Operations,V087650,0922,0200,Employees,Agency Staff,21/06/2018, 166.93 
Pertemps Ltd,Operations,V087650,0925,0200,Employees,Agency Staff,21/06/2018, 257.97 
Pertemps Ltd,Operations,V087651,0925,0200,Employees,Agency Staff,21/06/2018, 388.48 
Pertemps Ltd,Operations,V087662,0929,0200,Employees,Agency Staff,21/06/2018, 364.32 
Pertemps Ltd,Operations,V087665,0925,0200,Employees,Agency Staff,21/06/2018, 813.91 
Pertemps Ltd,Operations,V087666,0920,0200,Employees,Agency Staff,21/06/2018, 431.88 
Pertemps Ltd,Operations,V087667,0925,0200,Employees,Agency Staff,21/06/2018, 215.93 
Pertemps Ltd,Operations,V087667,4317,0200,Employees,Agency Staff,21/06/2018, 71.98 
Pertemps Ltd,Operations,V087672,0925,0200,Employees,Agency Staff,21/06/2018, 549.34 
Pertemps Ltd,Operations,V087673,0925,0200,Employees,Agency Staff,21/06/2018, 397.59 
Pertemps Ltd,Operations,V087676,0925,0200,Employees,Agency Staff,25/06/2018, 315.64 
Pertemps Ltd,Operations,V087721,0925,0200,Employees,Agency Staff,25/06/2018, 557.98 
Pertemps Ltd,Operations,V087774,0929,0200,Employees,Agency Staff,27/06/2018, 621.00 
Pertemps Ltd,Operations,V087775,0900,0200,Employees,Agency Staff,27/06/2018, 463.16 
PHS Group Ltd,Property Services,V087409,2972,1311,Premises,Contract cleaning & Cleaning Supplies,27/06/2018, 254.89 
Pirtek (Kidderminster),Operations,V087461,0816,3510,Transport,Vehicle Maintenance,25/06/2018, 379.69 
Pirtek (Kidderminster),Operations,V087475,0815,3510,Transport,Vehicle Maintenance,25/06/2018, 271.40 
Pirtek Worcester,Operations,V087537,0701,3510,Transport,Vehicle Maintenance,13/06/2018, 252.58 
Pirtek Worcester,Operations,V087735,0925,3510,Transport,Vehicle Maintenance,29/06/2018," 1,150.00 "
Plants for Business Ltd t/a Villaggio Verde,Economic Development,V087771,6733,5400,Third Party payments,Grants,27/06/2018," 1,000.00 "
Potterton Associates Ltd,Property Services,V087479,2972,2800,Third Party payments,Contractors,11/06/2018, 650.00 
Printed Banners and Signs Ltd,Community Services,V087495,4100,2800,Third Party payments,Contractors,15/06/2018, 910.00 
Prism Ltd,Property Services,V087339,2972,2000,Supplies and Services,Furniture & Equipment,25/06/2018," 1,480.35 "
Prism Medical UK,Housing,V087326,1563,7201,Capital,Mandatory Disabled Facilities Grant,01/06/2018, 999.00 
PVC Vendo,Operations,V087472,0925,3100,Transport,"Vehicle General Costs (Cleaning,CMS FTA)",21/06/2018, 418.06 
PW Commercial Company Ltd T/A Printwaste,Property Services,V087476,8633,5506,Supplies and Services,Paper Recycling,27/06/2018, 412.50 
Refuse Vehicle Solutions Limited,Operations,V087226,0829,3510,Transport,Vehicle Maintenance,19/06/2018, 288.75 
Refuse Vehicle Solutions Limited,Operations,V087556,0821,3150,Transport,Vehicle Hire,27/06/2018, 935.00 
Refuse Vehicle Solutions Limited,Operations,V087556,0824,3150,Transport,Vehicle Hire,27/06/2018, 935.00 
Ringway,Housing,V087635,1563,7201,Capital,Mandatory Disabled Facilities Grant,21/06/2018, 585.28 
RoSPA Enterprises Limited,Operations,V087029,0960,0600,Employees,Training,05/06/2018, 475.00 
RoSPA Enterprises Limited,Operations,V087029,0960,0600,Employees,Training,05/06/2018, 50.00 
RoSPA Enterprises Limited,Operations,V087029,0960,0600,Employees,Training,05/06/2018, 830.00 
Second Line,Economic Development,V087531,6732,2800,Third Party payments,Contractors,13/06/2018, 350.00 
Shire Consulting,Property Services,V087449,2950,2800,Third Party payments,Contractors,27/06/2018," 2,750.00 "
Shire Consulting,Property Services,V087449,2973,2800,Third Party payments,Contractors,27/06/2018, 650.00 
Snape Construction Ltd,Housing,V087634,1563,7209,Capital,Discretionary Standard Adaptation Assist,27/06/2018," 5,276.00 "
Solon Security Ltd,Community Services,V087181,4225,2800,Third Party payments,Contractors,07/06/2018," 1,080.00 "
Tenbury Transport Trust,Community Services,V087630,4070,5529,Third Party payments,Concessionary Fares,21/06/2018, 401.00 
Terberg Matec UK Ltd,Operations,V087451,0832,3510,Transport,Vehicle Maintenance,07/06/2018, 339.63 
Thamesdown Recycling,Operations,V087177,4314,2800,Third Party payments,Contractors,13/06/2018, 737.60 
The Community Housing Group Limited,Property Services,V087009,4311,2800,Third Party payments,Contractors,05/06/2018, 114.84 
The Community Housing Group Limited,Property Services,V087009,4320,5500,Supplies and Services,Miscellaneous Expenses,05/06/2018, 229.64 
The Malvern Showground,Tourism,V087142,6550,9252,Income,Commission,01/06/2018,-352.30 
The Malvern Showground,Tourism,V087142,9553,8902,Balance Sheet,Payments,01/06/2018," 3,523.00 "
The Malvern Showground,Tourism,V087632,6550,9252,Income,Commission,27/06/2018,-176.70 
The Malvern Showground,Tourism,V087632,9553,8902,Balance Sheet,Payments,27/06/2018," 1,767.00 "
The Street Nameplate Co Ltd,ICT & GIS,V087346,4520,1000,Premises,Repairs & Maintenance,05/06/2018, 65.00 
The Street Nameplate Co Ltd,ICT & GIS,V087346,4520,1000,Premises,Repairs & Maintenance,05/06/2018, 65.00 
The Street Nameplate Co Ltd,ICT & GIS,V087346,4520,1000,Premises,Repairs & Maintenance,05/06/2018, 65.00 
The Street Nameplate Co Ltd,ICT & GIS,V087346,4520,1000,Premises,Repairs & Maintenance,05/06/2018, 65.00 
The Street Nameplate Co Ltd,ICT & GIS,V087346,4520,1000,Premises,Repairs & Maintenance,05/06/2018, 70.00 
The Street Nameplate Co Ltd,ICT & GIS,V087346,4520,1000,Premises,Repairs & Maintenance,05/06/2018, 640.00 
The Street Nameplate Co Ltd,ICT & GIS,V087346,4520,1000,Premises,Repairs & Maintenance,05/06/2018, 130.00 
The Street Nameplate Co Ltd,ICT & GIS,V087346,4520,1000,Premises,Repairs & Maintenance,05/06/2018, 65.00 
The Street Nameplate Co Ltd,ICT & GIS,V087346,4520,1000,Premises,Repairs & Maintenance,05/06/2018, 135.00 
The Street Nameplate Co Ltd,ICT & GIS,V087346,4520,1000,Premises,Repairs & Maintenance,05/06/2018, 65.00 
The Street Nameplate Co Ltd,ICT & GIS,V087346,4520,1000,Premises,Repairs & Maintenance,05/06/2018, 65.00 
The Street Nameplate Co Ltd,ICT & GIS,V087346,4520,1000,Premises,Repairs & Maintenance,05/06/2018, 85.00 
Trash UK Limited,Operations,V086983,0929,3150,Transport,Vehicle Hire,05/06/2018, 900.00 
Trash UK Limited,Operations,V086983,0929,3150,Transport,Vehicle Hire,05/06/2018, 900.00 
Trash UK Limited,Operations,V087113,0929,3150,Transport,Vehicle Hire,11/06/2018," 1,800.00 "
Trash UK Limited,Operations,V087334,0929,3150,Transport,Vehicle Hire,27/06/2018, 900.00 
Truck Tyre Solutions,Operations,V086980,0778,3320,Transport,Tyres,05/06/2018, 894.00 
Truck Tyre Solutions,Operations,V087116,0822,3320,Transport,Tyres,13/06/2018, 445.00 
Truck Tyre Solutions,Operations,V087117,0816,3320,Transport,Tyres,13/06/2018, 460.00 
Truck Tyre Solutions,Operations,V087157,0817,3320,Transport,Tyres,15/06/2018, 556.00 
Truck Tyre Solutions,Operations,V087285,0824,3320,Transport,Tyres,25/06/2018, 524.00 
Truck Tyre Solutions,Operations,V087286,0795,3320,Transport,Tyres,25/06/2018, 287.50 
Truck Tyre Solutions,Operations,V087287,0815,3320,Transport,Tyres,25/06/2018, 981.50 
Truck Tyre Solutions,Operations,V087298,0818,3320,Transport,Tyres,27/06/2018, 511.00 
Truck Tyre Solutions,Operations,V087310,0828,3320,Transport,Tyres,27/06/2018, 460.00 
Upton Folk Dance and Song Society,Tourism,V087278,6590,9252,Income,Commission,01/06/2018,"-1,222.00 "
Upton Folk Dance and Song Society,Tourism,V087278,9595,8902,Balance Sheet,Payments,01/06/2018," 12,171.00 "
Upton Folk Dance and Song Society,Tourism,V087278,9602,8902,Balance Sheet,Payments,01/06/2018, 49.00 
Veale Wasbrough Vizards,Legal Services,V087675,8841,0600,Employees,Training,21/06/2018, 470.00 
Vision Gelpack Ltd,Operations,V086992,4196,2302,Supplies and Services,Recycling Sacks,05/06/2018," 2,578.97 "
Vision Gelpack Ltd,Operations,V087363,0920,2000,Supplies and Services,Furniture & Equipment,29/06/2018," 5,520.00 "
Vision Techniques (UK) Ltf,Operations,V087106,0823,3510,Transport,Vehicle Maintenance,11/06/2018, 260.00 
Vision Techniques (UK) Ltf,Operations,V087200,0762,3100,Transport,"Vehicle General Costs (Cleaning,CMS FTA)",19/06/2018, 300.00 
Vision Techniques (UK) Ltf,Operations,V087223,0821,3510,Transport,Vehicle Maintenance,19/06/2018, 261.00 
Vision Techniques (UK) Ltf,Operations,V087224,0722,3510,Transport,Vehicle Maintenance,19/06/2018," 1,399.00 "
Volkswagen Financial Services (UK) Ltd,Finance,V087490,8861,3600,Transport,Car Leases,11/06/2018," 1,275.41 "
Volkswagen Financial Services (UK) Ltd,Finance,V087490,8861,3600,Transport,Car Leases,11/06/2018," 1,322.84 "
Volkswagen Financial Services (UK) Ltd,Finance,V087788,8860,3600,Transport,Car Leases,29/06/2018," 1,463.83 "
Volkswagen Financial Services (UK) Ltd,Finance,V087788,8860,3600,Transport,Car Leases,29/06/2018," 1,356.18 "
Water Plus,Property Services,V087343,2982,1511,Premises,Water services,08/06/2018, 454.84 
Water Plus,Property Services,V087574,0900,1511,Premises,Water services,21/06/2018," 2,070.77 "
Water Plus,Property Services,V087598,2972,1511,Premises,Water services,27/06/2018," 1,153.30 "
Water Plus,Property Services,V087599,2975,1511,Premises,Water services,27/06/2018, 258.29 
Water Plus,Property Services,V087602,2971,1511,Premises,Water services,27/06/2018, 313.64 
Water Plus,Finance,V088213,4161,1511,Premises,Water services,27/06/2018, 389.79 
West Mercia Energy,Operations,V086977,9918,8902,Balance Sheet,Payments,01/06/2018," 3,586.05 "
West Mercia Energy,Operations,V086978,9918,8902,Balance Sheet,Payments,01/06/2018," 3,288.20 "
West Mercia Energy,Operations,V087107,9918,8902,Balance Sheet,Payments,07/06/2018," 3,489.95 "
West Mercia Energy,Operations,V087108,9918,8902,Balance Sheet,Payments,07/06/2018," 2,840.40 "
West Mercia Energy,Operations,V087302,9918,8902,Balance Sheet,Payments,01/06/2018," 3,441.34 "
West Mercia Energy,Operations,V087367,9918,8902,Balance Sheet,Payments,25/06/2018," 2,986.31 "
West Mercia Energy,Operations,V087368,9918,8902,Balance Sheet,Payments,25/06/2018," 3,138.61 "
West Mercia Energy,Operations,V087369,9918,8902,Balance Sheet,Payments,25/06/2018," 3,250.98 "
West Mercia Energy,Operations,V087370,9918,8902,Balance Sheet,Payments,25/06/2018," 3,267.60 "
West Mercia Energy,Operations,V087371,9918,8902,Balance Sheet,Payments,25/06/2018," 3,366.75 "
West Mercia Energy,Operations,V087436,9918,8902,Balance Sheet,Payments,29/06/2018, 686.40 
West Mercia Energy,Operations,V087447,9918,8902,Balance Sheet,Payments,29/06/2018," 3,287.40 "
Western Power Distribution,Property Services,V087551,2997,1000,Premises,Repairs & Maintenance,15/06/2018, 253.56 
Western Power Distribution,Property Services,V087552,2997,1000,Premises,Repairs & Maintenance,15/06/2018,-253.56 
Whittaker Office Solutions,Property Services,V087384,8620,4000,Supplies and Services,Printing & Photocopying,07/06/2018, 490.82 
Whittaker Office Solutions,Property Services,V087386,8620,4000,Supplies and Services,Printing & Photocopying,07/06/2018, 577.51 
Whittaker Office Solutions,Property Services,V087386,8620,4100,Supplies and Services,Stationery,07/06/2018, 20.31 
Worcester Doors Ltd,Property Services,V087448,2984,1000,Premises,Repairs & Maintenance,27/06/2018, 531.00 
Worcestershire County Council,Community Services,V087492,6230,2800,Third Party payments,Contractors,13/06/2018, 720.00 
Worcestershire County Council,Finance,V087722,8870,5507,Third Party payments,OLA`s,27/06/2018," 53,731.72 "
Worcestershire County Council,Operations,V087751,0922,5507,Third Party payments,OLA`s,29/06/2018," 29,433.74 "
Worcestershire County Council,Operations,V087751,0932,5507,Third Party payments,OLA`s,29/06/2018," 6,264.00 "
Wright Staff Recruitment Ltd,Operations,V087365,0925,0200,Employees,Agency Staff,05/06/2018," 1,722.68 "
Wright Staff Recruitment Ltd,Operations,V087494,0923,0200,Employees,Agency Staff,13/06/2018, 481.40 
Wright Staff Recruitment Ltd,Operations,V087494,0925,0200,Employees,Agency Staff,13/06/2018," 1,374.19 "
Wright Staff Recruitment Ltd,Operations,V087584,0923,0200,Employees,Agency Staff,19/06/2018, 688.00 
Wright Staff Recruitment Ltd,Operations,V087584,0925,0200,Employees,Agency Staff,19/06/2018, 298.18 
Wright Staff Recruitment Ltd,Operations,V087584,0925,0200,Employees,Agency Staff,19/06/2018, 747.29 
Wright Staff Recruitment Ltd,Operations,V087732,0923,0200,Employees,Agency Staff,27/06/2018, 720.34 
Wright Staff Recruitment Ltd,Operations,V087732,0925,0200,Employees,Agency Staff,27/06/2018, 763.46 
Wright Staff Recruitment Ltd,Operations,V087732,0925,0200,Employees,Agency Staff,27/06/2018, 316.14 
Wychavon District Council,Finance,V087350,3800,5507,Third Party payments,OLA`s,07/06/2018," 25,212.50 "
Wychavon District Council,Finance,V087350,8013,5507,Third Party payments,OLA`s,07/06/2018," 25,212.50 "
Wychavon District Council,Finance,V087362,8013,5500,Supplies and Services,Miscellaneous Expenses,07/06/2018, 333.32 
Wychavon District Council,Building Control,V087532,7501,9250,Income,Refunds,13/06/2018, 360.00 
Wychavon District Council,Community Services,V087545,4100,2800,Third Party payments,Contractors,19/06/2018," 6,246.64 "
Wychavon District Council,Finance,V087621,3800,5507,Third Party payments,OLA`s,25/06/2018," 5,437.00 "
Wychavon District Council,Finance,V087622,3800,5507,Third Party payments,OLA`s,25/06/2018, 711.00 
Wychavon District Council,Finance,V087623,3800,5507,Third Party payments,OLA`s,25/06/2018," 1,436.69 "
Wychavon District Council,Finance,V087624,3800,5507,Third Party payments,OLA`s,25/06/2018," 18,280.00 "
